bitfinex-derivatives/quotes_BNBF0:USTF0_20250511
["timestamp","ask_amount","ask_price","bid_price","bid_amount"]
[1746937046759,0.26113187,666.76,666.06,0.67227324]
[1746937046958,0.24509906,666.99,666.06,0.67227324]
[1746937047259,0.24509906,666.98,666.06,0.67227324]
[1746937047554,1.95202356,666.94,666.06,0.67227324]
[1746937047952,0.24509906,666.93,666.06,0.67227324]
[1746937049662,0.26114265,666.92,666.06,0.67227324]
[1746937049961,0.24509906,666.91,666.06,0.67227324]
[1746937052160,0.26114265,666.92,666.06,0.67227324]
[1746937052557,0.24509328,666.91,666.06,0.67227324]
[1746937054263,2.19711684,666.91,666.06,0.67227324]
[1746937054759,0.24509328,666.9,666.06,0.67227324]
[1746937056666,0.24509328,666.91,666.06,0.67227324]
[1746937057767,0.24509328,666.9,666.06,0.67227324]
[1746937058065,0.24509328,666.89,666.06,0.67227324]
[1746937058461,0.26113873,666.88,666.06,0.67227324]
[1746937058766,0.24509328,666.87,666.06,0.67227324]
[1746937061464,0.24509328,666.98,666.06,0.67227324]
[1746937061867,0.24509328,666.97,666.06,0.67227324]
[1746937062168,0.24509328,666.98,666.06,0.67227324]
[1746937062369,0.26113775,666.96,666.06,0.67227324]
[1746937063472,0.24509328,666.95,666.06,0.67227324]
[1746937064470,0.24509328,667.01,666.06,0.67227324]
[1746937064770,0.24509328,667.0,666.06,0.67227324]
[1746937065371,0.50624181,666.99,666.06,0.67227324]
[1746937065567,0.24509328,666.98,666.06,0.67227324]
[1746937066074,0.24509328,666.97,666.06,0.67227324]
[1746937066369,0.24509328,666.96,666.06,0.67227324]
[1746937066675,0.24509328,666.95,666.06,0.67227324]
[1746937066975,0.24509328,666.94,666.06,0.67227324]
[1746937067374,1.95202356,666.97,666.06,0.67227324]
[1746937067770,0.24512632,666.96,666.06,0.67227324]
[1746937068175,0.24512632,666.95,666.06,0.67227324]
[1746937068470,0.24512632,666.94,666.06,0.67227324]
[1746937070474,0.24512632,666.93,666.06,0.67227324]
[1746937070770,0.24512632,666.99,666.06,0.67227324]
[1746937071175,0.24512632,666.98,666.06,0.67227324]
[1746937071377,0.50626407,666.98,666.06,0.67227324]
[1746937071576,0.24512632,666.97,666.06,0.67227324]
[1746937071874,0.24512632,666.96,666.06,0.67227324]
[1746937072176,0.24512632,666.95,666.06,0.67227324]
[1746937072475,0.24512632,666.94,666.06,0.67227324]
[1746937072776,0.24512632,666.97,666.06,0.67227324]
[1746937074170,1.95202356,666.92,666.06,0.67227324]
[1746937074578,0.24512632,666.91,666.06,0.67227324]
[1746937076572,0.26112305,666.9,666.06,0.67227324]
[1746937076974,0.2450464,666.89,666.06,0.67227324]
[1746937078180,0.26112305,666.9,666.06,0.67227324]
[1746937078480,0.24504657,666.89,666.06,0.67227324]
[1746937079583,0.24504657,667.45,666.06,0.67227324]
[1746937079878,0.24504657,667.44,666.06,0.67227324]
[1746937080479,0.26105841,667.43,666.06,0.67227324]
[1746937080778,0.50610498,667.43,666.06,0.67227324]
[1746937080984,0.24504657,667.42,666.06,0.67227324]
[1746937081383,0.24504657,667.41,666.06,0.67227324]
[1746937081679,0.24504657,667.4,666.06,0.67227324]
[1746937082079,0.24504657,667.39,666.06,0.67227324]
[1746937082582,0.24504657,667.38,666.06,0.67227324]
[1746937082783,0.24504657,667.37,666.06,0.67227324]
[1746937083183,0.24504657,667.36,666.06,0.67227324]
[1746937083482,0.50610498,667.36,666.06,0.67227324]
[1746937083684,0.24504657,667.35,666.06,0.67227324]
[1746937083883,0.24504657,667.34,666.06,0.67227324]
[1746937084183,0.26105841,667.36,666.06,0.67227324]
[1746937084481,0.24504403,667.35,666.06,0.67227324]
[1746937084883,0.26105841,667.36,666.06,0.67227324]
[1746937084884,0.24504403,667.34,666.06,0.67227324]
[1746937085184,0.24504403,667.33,666.06,0.67227324]
[1746937085583,0.24504403,667.32,666.06,0.67227324]
[1746937085786,1.95202356,667.09,666.06,0.67227324]
[1746937086180,0.24504403,667.08,666.06,0.67227324]
[1746937086686,0.24504403,667.07,666.06,0.67227324]
[1746937086985,0.24504403,667.06,666.06,0.67227324]
[1746937087385,0.24504403,667.05,666.06,0.67227324]
[1746937087886,0.24504403,667.04,666.06,0.67227324]
[1746937088085,0.24504403,667.03,666.06,0.67227324]
[1746937088486,0.24504403,667.11,666.06,0.67227324]
[1746937088686,0.261078,667.02,666.06,0.67227324]
[1746937088882,0.24504403,667.01,666.06,0.67227324]
[1746937089288,0.24504403,667.11,666.06,0.67227324]
[1746937089687,0.261078,667.1,666.06,0.67227324]
[1746937090087,0.24504403,667.09,666.06,0.67227324]
[1746937091688,0.24504403,667.08,666.06,0.67227324]
[1746937091988,0.24504403,667.15,666.06,0.67227324]
[1746937092288,0.24504403,667.14,666.06,0.67227324]
[1746937092587,0.24504403,667.13,666.06,0.67227324]
[1746937092889,0.24504403,667.12,666.06,0.67227324]
[1746937093187,0.24504403,667.11,666.06,0.67227324]
[1746937093589,0.24504403,667.1,666.06,0.67227324]
[1746937093987,0.24504403,667.13,666.06,0.67227324]
[1746937094489,0.24504403,667.24,666.06,0.67227324]
[1746937094788,0.24504403,667.25,666.06,0.67227324]
[1746937095389,0.26106429,667.24,666.06,0.67227324]
[1746937095988,0.24504403,667.23,666.06,0.67227324]
[1746937099890,0.26106429,667.24,666.06,0.67227324]
[1746937100190,1.95202356,667.59,666.06,0.67227324]
[1746937100485,0.24501837,667.23,666.06,0.67227324]
[1746937100989,0.24501837,667.58,666.06,0.67227324]
[1746937101189,0.24501837,667.22,666.06,0.67227324]
[1746937101490,0.26103002,667.57,666.06,0.67227324]
[1746937101790,0.24501837,667.56,666.06,0.67227324]
[1746937102291,0.24501837,667.55,666.06,0.67227324]
[1746937102587,0.24501837,667.54,666.06,0.67227324]
[1746937102791,0.24501837,667.53,666.06,0.67227324]
[1746937103188,0.24501837,667.52,666.06,0.67227324]
[1746937103992,0.24501837,667.51,666.06,0.67227324]
[1746937104286,0.24501837,667.5,666.06,0.67227324]
[1746937104492,0.50605133,667.5,666.06,0.67227324]
[1746937104792,0.24501837,667.49,666.06,0.67227324]
[1746937105186,0.26103296,667.5,666.06,0.67227324]
[1746937105187,0.24501837,667.48,666.06,0.67227324]
[1746937105492,0.24501837,667.47,666.06,0.67227324]
[1746937105892,0.24501837,667.46,666.06,0.67227324]
[1746937106194,0.24501837,667.45,666.06,0.67227324]
[1746937106695,0.24501837,667.44,666.06,0.67227324]
[1746937106988,0.24501837,667.43,666.06,0.67227324]
[1746937107287,0.24501837,667.42,666.06,0.67227324]
[1746937107491,1.95202356,667.32,666.06,0.67227324]
[1746937107993,0.24501837,667.31,666.06,0.67227324]
[1746937108288,0.24501837,667.3,666.06,0.67227324]
[1746937108592,0.24501837,667.29,666.06,0.67227324]
[1746937109092,0.24501837,667.28,666.06,0.67227324]
[1746937109293,2.19704193,667.28,666.06,0.67227324]
[1746937109591,0.24501837,667.27,666.06,0.67227324]
[1746937110292,0.24501837,667.26,666.06,0.67227324]
[1746937110493,0.24501837,667.25,666.06,0.67227324]
[1746937111088,0.24501837,667.24,666.06,0.67227324]
[1746937111393,0.24501837,667.23,666.06,0.67227324]
[1746937111693,0.24501837,667.25,666.06,0.67227324]
[1746937112190,1.95202356,667.29,666.06,0.67227324]
[1746937112191,0.24501837,667.24,666.06,0.67227324]
[1746937112591,0.24501837,667.23,666.06,0.67227324]
[1746937112993,0.24501837,667.28,666.06,0.67227324]
[1746937113494,0.50609539,667.27,666.06,0.67227324]
[1746937113791,0.24501837,667.26,666.06,0.67227324]
[1746937114096,2.19704193,667.26,666.06,0.67227324]
[1746937114494,0.24501837,667.25,666.06,0.67227324]
[1746937114791,0.24501837,667.24,666.06,0.67227324]
[1746937115195,0.24501837,667.23,666.06,0.67227324]
[1746937115494,0.24501837,667.22,666.06,0.67227324]
[1746937115895,0.24501837,667.21,666.06,0.67227324]
[1746937116194,0.24501837,667.25,666.06,0.67227324]
[1746937116397,1.95202356,667.2,666.06,0.67227324]
[1746937116696,0.24501837,667.19,666.06,0.67227324]
[1746937118498,1.95202356,667.31,666.06,0.67227324]
[1746937118797,1.95202356,667.25,666.06,0.67227324]
[1746937119297,0.24500025,667.24,666.06,0.67227324]
[1746937119498,0.26106135,667.24,666.06,0.67227324]
[1746937120092,0.24498414,667.23,666.06,0.67227324]
[1746937120398,0.24498414,667.22,666.06,0.67227324]
[1746937120799,0.24498414,667.21,666.06,0.67227324]
[1746937121198,0.24498414,667.2,666.06,0.67227324]
[1746937121399,2.1970077,667.2,666.06,0.67227324]
[1746937121595,0.24498414,667.19,666.06,0.67227324]
[1746937122197,0.24498414,667.18,666.06,0.67227324]
[1746937122494,0.24498414,667.17,666.06,0.67227324]
[1746937122801,0.24498414,667.16,666.06,0.67227324]
[1746937123200,0.24498414,667.15,666.06,0.67227324]
[1746937123499,0.24498414,667.14,666.06,0.67227324]
[1746937123900,0.24498414,667.13,666.06,0.67227324]
[1746937124201,0.24498414,667.15,666.06,0.67227324]
[1746937124600,0.5060543,667.14,666.06,0.67227324]
[1746937125096,0.24498414,667.13,666.06,0.67227324]
[1746937127806,0.24498414,669.03,666.06,0.67227324]
[1746937128304,0.24498414,669.02,666.06,0.67227324]
[1746937128506,0.50577355,669.02,666.06,0.67227324]
[1746937128710,0.24498414,669.01,666.06,0.67227324]
[1746937129111,0.24498414,669.0,666.06,0.67227324]
[1746937129412,0.24498414,668.99,666.06,0.67227324]
[1746937129808,0.24498414,668.98,666.06,0.67227324]
[1746937130213,0.24498414,668.97,666.06,0.67227324]
[1746937130613,0.24498414,668.96,666.06,0.67227324]
[1746937131015,0.24498414,668.95,666.06,0.67227324]
[1746937131413,0.50560364,668.94,666.06,0.67227324]
[1746937131611,0.24498414,668.93,666.06,0.67227324]
[1746937132413,0.24498414,668.92,666.06,0.67227324]
[1746937132911,0.24498414,668.91,666.06,0.67227324]
[1746937133216,0.2606195,668.94,666.06,0.67227324]
[1746937133515,0.26035043,668.9,666.06,0.67227324]
[1746937133713,0.29668748,674.11,666.06,0.67227324]
[1746937134013,0.24502291,668.89,666.06,0.67227324]
[1746937134311,0.24502291,674.1,666.06,0.67227324]
[1746937134517,0.26042251,668.88,666.06,0.67227324]
[1746937134713,0.29686804,673.7,666.06,0.67227324]
[1746937135013,0.24502291,673.69,666.06,0.67227324]
[1746937135213,0.24502291,673.68,666.06,0.67227324]
[1746937135511,0.24502291,673.67,666.06,0.67227324]
[1746937135816,0.24502291,673.66,666.06,0.67227324]
[1746937136015,0.24502291,673.65,666.06,0.67227324]
[1746937136213,0.29705323,673.28,666.06,0.67227324]
[1746937137016,0.24504974,673.27,666.06,0.67227324]
[1746937137516,0.29721656,672.91,666.06,0.67227324]
[1746937138915,0.24504974,672.9,666.06,0.67227324]
[1746937139216,0.24504974,672.89,666.06,0.67227324]
[1746937139514,0.24504974,672.88,666.06,0.67227324]
[1746937139817,0.24504974,672.87,666.06,0.67227324]
[1746937140315,0.24504974,672.86,666.06,0.67227324]
[1746937140515,0.50558338,672.86,666.06,0.67227324]
[1746937140718,0.24504974,672.85,666.06,0.67227324]
[1746937141115,1.95088689,667.49,666.06,0.67227324]
[1746937141321,1.95088689,667.25,666.06,0.67227324]
[1746937141620,0.24504974,667.24,666.06,0.67227324]
[1746937142419,0.26107898,667.23,666.06,0.67227324]
[1746937142717,0.24504974,667.22,666.06,0.67227324]
[1746937145521,1.95088689,666.82,666.06,0.67227324]
[1746937145826,0.24504974,666.81,666.06,0.67227324]
[1746937148026,0.24504974,666.83,666.06,0.67227324]
[1746937148426,1.95088689,666.84,666.06,0.67227324]
[1746937148727,0.2449943,666.83,666.06,0.67227324]
[1746937149825,0.2449943,666.87,666.06,0.67227324]
[1746937151731,1.95088689,667.29,666.06,0.67227324]
[1746937152131,0.2449932,667.28,666.06,0.67227324]
[1746937152531,0.50603888,667.28,666.06,0.67227324]
[1746937152832,0.2449932,667.27,666.06,0.67227324]
[1746937153228,0.2449932,667.26,666.06,0.67227324]
[1746937153534,0.2449932,667.25,666.06,0.67227324]
[1746937153931,0.2449932,667.24,666.06,0.67227324]
[1746937154232,0.2449932,667.23,666.06,0.67227324]
[1746937154534,0.2449932,667.31,666.06,0.67227324]
[1746937154835,0.2449932,667.3,666.06,0.67227324]
[1746937155035,1.95088689,667.19,666.06,0.67227324]
[1746937155429,0.50604672,667.18,666.06,0.67227324]
[1746937155931,0.2449932,667.17,666.06,0.67227324]
[1746937157737,0.2449932,667.19,666.06,0.67227324]
[1746937158536,0.26107016,667.18,666.06,0.67227324]
[1746937158836,0.2449932,667.17,666.06,0.67227324]
[1746937160732,0.2449932,667.19,666.06,0.67227324]
[1746937161337,1.95088689,667.2,666.06,0.67227324]
[1746937161637,0.26105254,667.18,666.06,0.67227324]
[1746937162233,0.24497512,667.17,666.06,0.67227324]
[1746937163034,0.24497512,667.17,666.07,1.11885279]
[1746937163235,0.24497512,667.17,666.09,0.30025972]
[1746937163434,0.24497512,667.37,666.1,1.11885279]
[1746937163637,0.24497512,667.37,666.12,0.3002462]
[1746937164434,0.26116323,667.36,666.12,0.3002462]
[1746937165139,0.24497512,667.35,666.12,0.3002462]
[1746937166541,0.24497512,667.65,666.12,0.3002462]
[1746937166940,0.24497512,667.64,666.12,0.3002462]
[1746937167240,0.24497512,667.63,666.13,0.678]
[1746937167435,0.50610601,667.63,666.15,0.30023268]
[1746937167641,0.24497512,667.62,666.15,0.30023268]
[1746937167941,0.24497512,667.61,666.15,0.30023268]
[1746937168242,0.26113089,667.63,666.15,0.30023268]
[1746937168744,0.24493644,667.62,666.15,0.30023268]
[1746937169040,0.24493644,667.61,666.15,0.30023268]
[1746937169440,0.24493644,667.6,666.15,0.30023268]
[1746937169941,0.24493644,667.59,666.15,0.30023268]
[1746937170240,0.24493644,667.58,666.15,0.30023268]
[1746937170443,0.50591458,667.58,666.15,0.30023268]
[1746937170742,0.24493644,667.57,666.15,0.30023268]
[1746937171141,0.24493644,667.56,666.15,0.30023268]
[1746937171538,0.24493644,667.55,666.15,0.30023268]
[1746937172042,0.24493644,667.54,666.15,0.30023268]
[1746937172441,0.24493644,667.53,666.15,0.30023268]
[1746937173445,0.26097521,667.52,666.15,0.30023268]
[1746937173844,0.24493644,667.51,666.15,0.30023268]
[1746937178749,0.24493644,667.84,666.15,0.30023268]
[1746937179150,0.24493644,667.83,666.15,0.30023268]
[1746937179646,0.24493644,667.82,666.15,0.30023268]
[1746937180353,0.24493644,667.81,666.15,0.30023268]
[1746937180850,0.24493644,667.8,666.15,0.30023268]
[1746937181151,1.95088689,667.78,666.15,0.30023268]
[1746937181345,0.24493644,667.77,666.15,0.30023268]
[1746937182046,0.24493644,667.77,666.16,0.596]
[1746937182349,0.24493644,667.76,666.16,0.596]
[1746937182551,0.50593416,667.76,666.16,0.596]
[1746937182750,0.24493644,667.75,666.16,0.596]
[1746937183053,0.24493644,667.74,666.16,0.596]
[1746937183452,0.24493644,667.73,666.16,0.596]
[1746937183752,0.24493644,667.72,666.16,0.596]
[1746937184153,0.24493644,667.71,666.16,0.596]
[1746937184654,1.95088689,667.6,666.16,0.596]
[1746937184847,0.24493644,667.59,666.16,0.596]
[1746937185250,0.24493644,667.58,666.16,0.596]
[1746937185553,0.24493644,667.57,666.16,0.596]
[1746937185953,0.26099184,667.58,666.16,0.596]
[1746937185954,0.24493644,667.56,666.16,0.596]
[1746937186350,0.24493644,667.55,666.16,0.596]
[1746937186655,0.24493644,667.54,666.16,0.596]
[1746937186955,1.95088689,667.5,666.16,0.596]
[1746937187553,0.24493644,667.49,666.16,0.596]
[1746937187751,0.24493644,667.48,666.16,0.596]
[1746937188157,0.24493644,667.47,666.16,0.596]
[1746937188355,0.5059322,667.47,666.16,0.596]
[1746937188554,0.24493644,667.46,666.16,0.596]
[1746937188751,0.24493644,667.45,666.16,0.596]
[1746937189154,0.24493644,667.44,666.16,0.596]
[1746937189557,0.24493644,667.43,666.16,0.596]
[1746937189757,0.24493644,667.43,666.18,0.30021915]
[1746937189957,0.24493644,667.42,666.18,0.30021915]
[1746937190152,0.24493644,667.41,666.18,0.30021915]
[1746937190557,0.24493644,667.4,666.18,0.30021915]
[1746937191055,0.24493644,667.39,666.18,0.30021915]
[1746937191458,0.50593416,667.38,666.18,0.30021915]
[1746937191757,0.24493644,667.37,666.18,0.30021915]
[1746937192258,0.24493644,667.36,666.18,0.30021915]
[1746937192662,0.26099772,667.38,666.18,0.30021915]
[1746937192663,0.24493644,667.35,666.18,0.30021915]
[1746937193059,0.24493644,667.34,666.18,0.30021915]
[1746937193261,1.95088689,667.22,666.18,0.30021915]
[1746937193760,0.24493644,667.21,666.18,0.30021915]
[1746937195257,0.24493644,667.28,666.18,0.30021915]
[1746937195454,0.24493644,667.28,666.18,0.73821915]
[1746937196460,0.24493644,667.37,666.18,0.73821915]
[1746937197563,0.2609801,667.36,666.18,0.73821915]
[1746937197964,0.24493644,667.35,666.18,0.73821915]
[1746937199465,0.24493644,667.88,666.18,0.73821915]
[1746937199865,0.24493644,667.87,666.18,0.73821915]
[1746937200067,1.95088689,667.59,666.18,0.73821915]
[1746937200568,0.26095955,667.58,666.18,0.73821915]
[1746937200863,0.50589599,667.58,666.18,0.73821915]
[1746937201267,0.24493644,667.57,666.18,0.73821915]
[1746937201567,0.24493644,667.56,666.18,0.73821915]
[1746937201870,0.24493644,667.55,666.18,0.73821915]
[1746937202263,0.24493644,667.54,666.18,0.73821915]
[1746937202569,0.24493644,667.53,666.18,0.73821915]
[1746937202868,0.24493644,667.52,666.18,0.73821915]
[1746937203164,0.24493644,667.51,666.18,0.73821915]
[1746937203371,0.24493644,667.51,666.19,1.11850819]
[1746937203670,0.24493644,667.5,666.21,0.30020564]
[1746937205564,0.24493644,667.64,666.21,0.30020564]
[1746937205771,0.26095368,667.49,666.21,0.30020564]
[1746937205969,0.24493644,667.63,666.21,0.30020564]
[1746937206671,0.24493644,667.62,666.21,0.30020564]
[1746937207067,0.24493644,667.75,666.21,0.30020564]
[1746937207370,0.26096836,667.61,666.21,0.30020564]
[1746937207567,0.24493644,667.74,666.21,0.30020564]
[1746937207870,0.24493644,667.73,666.21,0.30020564]
[1746937208270,0.24493644,667.72,666.21,0.30020564]
[1746937208671,0.26095759,667.72,666.21,0.30020564]
[1746937209073,0.24493644,667.71,666.21,0.30020564]
[1746937210574,0.24493644,667.7,666.21,0.30020564]
[1746937210974,0.24493644,667.71,666.21,0.30020564]
[1746937211274,1.95088689,667.96,666.21,0.30020564]
[1746937211673,0.24491693,667.95,666.21,0.30020564]
[1746937211974,0.24491693,667.94,666.21,0.30020564]
[1746937212272,0.24491693,667.93,666.21,0.30020564]
[1746937212569,0.24491693,667.92,666.21,0.30020564]
[1746937213075,0.24491693,667.91,666.21,0.30020564]
[1746937213374,0.24491693,667.9,666.21,0.30020564]
[1746937213774,0.24491693,667.89,666.21,0.30020564]
[1746937214175,0.24491693,667.88,666.21,0.30020564]
[1746937214576,0.50587257,667.87,666.21,0.30020564]
[1746937214778,1.95088689,667.86,666.21,0.30020564]
[1746937215076,0.24491693,667.85,666.21,0.30020564]
[1746937215377,0.24491693,667.84,666.21,0.30020564]
[1746937215777,0.24491693,667.83,666.21,0.30020564]
[1746937216177,0.24491693,667.82,666.21,0.30020564]
[1746937216779,0.24491693,667.81,666.21,0.30020564]
[1746937217078,0.24491693,667.8,666.21,0.30020564]
[1746937217478,0.24491693,667.79,666.21,0.30020564]
[1746937217878,0.24491693,667.78,666.21,0.30020564]
[1746937218179,1.95088689,667.59,666.21,0.30020564]
[1746937218581,0.50589409,667.58,666.21,0.30020564]
[1746937218980,0.24491693,667.57,666.21,0.30020564]
[1746937219280,0.24491693,667.56,666.21,0.30020564]
[1746937219580,0.24491693,667.55,666.21,0.30020564]
[1746937219784,1.95088689,667.41,666.21,0.30020564]
[1746937220280,0.24491693,667.4,666.21,0.30020564]
[1746937220580,0.24491693,667.39,666.21,0.30020564]
[1746937220881,0.24491693,667.38,666.21,0.30020564]
[1746937221181,0.24491693,667.37,666.21,0.30020564]
[1746937221585,0.50591171,667.36,666.21,0.30020564]
[1746937221978,0.24491693,667.35,666.21,0.30020564]
[1746937222183,2.19580382,667.35,666.21,0.30020564]
[1746937222484,0.24491693,667.34,666.21,0.30020564]
[1746937222683,0.24491693,667.33,666.21,0.30020564]
[1746937223078,0.24491693,667.32,666.21,0.30020564]
[1746937223483,0.50591758,667.31,666.21,0.30020564]
[1746937223683,0.24491693,667.3,666.21,0.30020564]
[1746937224182,0.24491693,667.29,666.21,0.30020564]
[1746937224482,0.24491693,667.28,666.21,0.30020564]
[1746937224678,0.24491693,667.27,666.21,0.30020564]
[1746937225083,0.24491693,667.26,666.21,0.30020564]
[1746937225484,0.24491693,667.25,666.21,0.30020564]
[1746937225881,1.95088689,667.29,666.21,0.30020564]
[1746937226083,0.24492338,667.28,666.21,0.30020564]
[1746937226485,0.24492338,667.27,666.21,0.30020564]
[1746937226885,0.24492338,667.26,666.21,0.30020564]
[1746937227184,1.95088689,667.29,666.21,0.30020564]
[1746937227385,1.95088689,667.29,666.22,0.71]
[1746937227681,1.95088689,667.26,666.24,0.30019212]
[1746937227985,0.24491585,667.25,666.24,0.30019212]
[1746937229879,0.24491585,667.4,666.24,0.30019212]
[1746937230180,0.24491585,667.39,666.24,0.30019212]
[1746937230587,0.50590672,667.38,666.24,0.30019212]
[1746937230882,0.24491585,667.37,666.24,0.30019212]
[1746937231288,0.24491585,667.36,666.24,0.30019212]
[1746937231682,0.24491585,667.35,666.24,0.30019212]
[1746937232289,0.24491585,667.34,666.24,0.30019212]
[1746937232887,0.24491585,667.33,666.24,0.30019212]
[1746937233387,1.95088689,667.38,666.24,0.30019212]
[1746937233685,0.26098499,667.32,666.24,0.30019212]
[1746937235289,2.19579712,667.37,666.24,0.30019212]
[1746937236389,0.24491023,667.31,666.24,0.30019212]
[1746937236591,0.24491023,667.31,666.25,1.11851031]
[1746937236789,0.24491023,667.36,666.27,0.3001786]
[1746937237389,0.24491023,667.52,666.28,1.11851031]
[1746937237686,0.24491023,667.52,666.3,0.30016509]
[1746937237986,0.24491023,667.52,666.31,1.11731383]
[1746937238191,0.24491023,667.52,666.33,0.30015157]
[1746937238792,0.24491023,667.74,666.34,1.11731383]
[1746937238985,0.24491023,667.74,666.36,0.30013806]
[1746937239591,0.26090281,667.73,666.36,0.30013806]
[1746937239991,0.24491023,667.72,666.36,0.30013806]
[1746937240387,0.24491023,667.72,666.37,1.11627947]
[1746937240692,0.24491023,667.72,666.38,1.11627947]
[1746937240887,0.24491023,667.72,666.39,0.30012455]
[1746937241188,0.24491023,667.72,666.4,1.11627947]
[1746937241693,0.24491023,667.72,666.41,1.11627947]
[1746937241894,0.24491023,667.72,666.42,1.11627947]
[1746937242391,0.24491023,667.72,666.44,0.30010203]
[1746937242591,0.24491023,667.72,666.45,1.11627947]
[1746937242793,0.24491023,667.72,666.47,0.30008852]
[1746937242993,0.24491023,667.72,666.48,1.11627947]
[1746937243589,0.24491023,667.72,666.47,0.30008852]
[1746937245090,0.24491023,669.3,666.47,0.30008852]
[1746937245291,1.95088689,669.31,666.47,0.30008852]
[1746937245492,0.2607308,669.29,666.47,0.30008852]
[1746937245694,0.24477396,669.28,666.47,0.30008852]
[1746937245995,0.24477396,669.27,666.47,0.30008852]
[1746937246397,0.24477396,669.26,666.47,0.30008852]
[1746937246897,0.24477396,669.25,666.47,0.30008852]
[1746937247499,0.24477396,669.24,666.47,0.30008852]
[1746937247798,0.24477396,669.23,666.47,0.30008852]
[1746937248194,0.24477396,669.22,666.47,0.30008852]
[1746937248499,0.50571199,669.22,666.47,0.30008852]
[1746937248697,0.24477396,669.21,666.47,0.30008852]
[1746937248900,0.24477396,669.2,666.47,0.30008852]
[1746937249199,0.24477396,669.19,666.47,0.30008852]
[1746937249598,0.24477396,669.18,666.47,0.30008852]
[1746937249896,0.24477396,669.18,666.47,0.28424077]
[1746937250102,0.24477396,669.17,666.47,0.28424077]
[1746937250301,0.24477396,669.17,666.48,0.49]
[1746937250501,0.24477396,669.16,666.48,0.49]
[1746937250703,0.24477396,669.16,666.61,0.3000255]
[1746937250899,0.24477396,669.15,666.61,0.3000255]
[1746937251098,0.24477396,669.14,666.61,0.3000255]
[1746937251502,0.50547546,669.13,666.61,0.3000255]
[1746937251799,0.24477396,669.12,666.61,0.3000255]
[1746937252203,0.24477396,669.11,666.61,0.3000255]
[1746937252702,0.24477396,669.1,666.61,0.3000255]
[1746937253003,0.24477396,669.09,666.61,0.3000255]
[1746937253603,0.24477396,669.08,666.61,0.3000255]
[1746937254104,0.24477396,669.07,666.61,0.3000255]
[1746937254405,0.24477396,669.06,666.61,0.3000255]
[1746937254907,0.24477396,669.05,666.61,0.3000255]
[1746937255408,0.24477396,669.04,666.61,0.3000255]
[1746937255703,0.24477396,669.03,666.61,0.3000255]
[1746937256108,2.21158839,669.07,666.61,0.3000255]
[1746937256307,1.95088689,669.07,666.61,0.3000255]
[1746937256507,0.24400988,669.06,666.61,0.3000255]
[1746937256803,0.24400988,669.05,666.61,0.3000255]
[1746937257511,0.26072884,669.04,666.61,0.3000255]
[1746937257811,1.95088689,668.92,666.61,0.3000255]
[1746937258310,0.24400988,668.91,666.61,0.3000255]
[1746937258604,0.24400988,668.9,666.61,0.3000255]
[1746937259009,0.24400988,668.89,666.61,0.3000255]
[1746937259310,0.24400988,668.88,666.61,0.3000255]
[1746937259709,0.24400988,668.87,666.61,0.3000255]
[1746937259909,0.24400988,668.86,666.61,0.3000255]
[1746937260106,0.24400988,668.85,666.61,0.3000255]
[1746937260510,0.5047524,668.84,666.61,0.3000255]
[1746937260809,0.24400988,668.83,666.61,0.3000255]
[1746937261305,0.26074252,668.84,666.61,0.3000255]
[1746937261509,0.24400864,668.82,666.61,0.3000255]
[1746937261805,0.24400864,668.81,666.61,0.3000255]
[1746937262106,1.95088689,668.39,666.61,0.3000255]
[1746937262611,0.24400864,668.38,666.61,0.3000255]
[1746937263013,0.24400864,668.37,666.61,0.3000255]
[1746937263311,0.24400864,668.36,666.61,0.3000255]
[1746937263511,0.50480196,668.36,666.61,0.3000255]
[1746937263710,0.24400864,668.35,666.61,0.3000255]
[1746937264012,0.24400864,668.34,666.61,0.3000255]
[1746937264412,0.24400864,668.33,666.61,0.3000255]
[1746937264706,0.24400864,668.32,666.61,0.3000255]
[1746937265213,0.24400864,668.31,666.61,0.3000255]
[1746937265613,0.24400864,668.3,666.61,0.3000255]
[1746937266009,0.24400864,668.29,666.61,0.3000255]
[1746937266313,0.24400864,668.28,666.61,0.3000255]
[1746937266714,0.24400864,668.27,666.61,0.3000255]
[1746937267115,0.24400864,668.26,666.61,0.3000255]
[1746937267416,0.24400864,668.25,666.61,0.3000255]
[1746937267814,0.24400864,668.24,666.61,0.3000255]
[1746937268011,1.95088689,667.95,666.61,0.3000255]
[1746937269115,0.24400864,667.94,666.61,0.3000255]
[1746937269415,1.95088689,667.85,666.61,0.3000255]
[1746937269716,0.24400864,667.84,666.61,0.3000255]
[1746937271416,0.24400864,667.84,666.62,0.71]
[1746937271718,0.2608373,667.83,666.64,0.300012]
[1746937272517,0.24400864,667.82,666.64,0.300012]
[1746937274617,0.24400864,668.47,666.64,0.300012]
[1746937274818,0.24400864,668.46,666.64,0.300012]
[1746937275218,0.24400864,668.45,666.64,0.300012]
[1746937275520,0.50477753,668.45,666.64,0.300012]
[1746937275721,1.95088689,668.41,666.64,0.300012]
[1746937276019,0.24400864,668.4,666.64,0.300012]
[1746937276321,0.24400864,668.39,666.64,0.300012]
[1746937276720,0.24400864,668.38,666.64,0.300012]
[1746937277119,0.24400864,668.37,666.64,0.300012]
[1746937277520,0.24400864,668.4,666.64,0.300012]